Cogmind - Beta 9.6 @@@ ROGUE MODE // 2020.05.12 @ 10:38:38 Player: 0x90 Result: Destroyed by S-10 Pest with Light Assault Rifle Performance ------------- Evolutions (1) 500 Regions Visited (2) 400 Robots Destroyed (6) 30 Value Destroyed (248) 248 Prototype IDs (0) 0 Alien Tech Used (0) 0 Bonus (0) 0 TOTAL SCORE: 1178 Bonus ------- None Cogmind --------- Core Integrity 0/400 Matter 290/300 Energy 99/100 System Corruption 0% Temperature Cool (0) Movement Core (50) Location -9/Materials Parts ------- > --- POWER (1) -------- (None) > --- PROPULSION (4) --- (None) > --- UTILITY (2) ------ (None) > --- WEAPON (2) ------- Heavy Hammer > --- INVENTORY (4) ---- Medium Matter Pod (100) Small Laser Peak State ------------ > --- POWER ------------ Light Ion Engine > --- PROPULSION ------- Aluminum Leg Aluminum Leg Aluminum Leg Aluminum Leg > --- UTILITY ---------- Small Storage Unit Medium Matter Pod > --- WEAPON ----------- Medium Laser Small Laser > --- INVENTORY -------- Aluminum Leg Targeting Computer Particle Gun [Rating: 9] Favorites ----------- Power Light Ion Engine Engine Light Ion Engine Propulsion Aluminum Leg Leg Aluminum Leg Utility Small Storage Unit Storage Small Storage Unit Processor Targeting Computer Weapon Medium Laser Energy Gun Medium Laser Impact Weapon Heavy Hammer Build | -11 -10 -9 ------- Run | Scr Mat Mat Slots Evolved 2 | . . 2 Power . | . . . Propulsion 2 | . . 2 Utility . | . . . Weapon . | . . . Parts Attached 17 | 6 2 9 Power 1 | 1 . . Engine 1 | 1 . . Core . | . . . Reactor . | . . . Propulsion 7 | 2 . 5 Treads . | . . . Leg 7 | 2 . 5 Wheel . | . . . Hover . | . . . Flight . | . . . Utility 3 | 1 1 1 Device . | . . . Storage 2 | 1 1 . Processor 1 | . . 1 Hackware . | . . . Protection . | . . . Artifact . | . . . Weapon 6 | 2 1 3 Energy Gun 5 | 2 1 2 Energy Cannon . | . . . Ballistic Gun . | . . . Ballistic Cannon . | . . . Launcher . | . . . Special Weapon . | . . . Impact Weapon 1 | . . 1 Slashing Weapon . | . . . Piercing Weapon . | . . . Special Melee Weapon . | . . . Unidentified Prototypes . | . . . Parts Lost 11 | . 1 10 Power 1 | . . 1 Propulsion 5 | . . 5 Utility 1 | . . 1 Weapon 4 | . 1 3 Highest Loss Streak 10 | . 1 10 Average Slot Usage (%) 80 | . 96 59 Engine 10 | . 14 4 Leg 27 | . 28 27 Storage 20 | . 26 11 Processor 2 | . . 4 Energy Gun 19 | . 26 11 Naked Turns 38 | . . 38 Heaviest Build 13 | 11 13 12 Greatest Support 40 | 20 20 40 Greatest Overweight (x) 1 | . . 1 Average Overweight (x) . | . . . Largest Inventory Capacity 6 | 6 6 6 Average Capacity 5 | 5 6 5 Most Carried 5 | 4 5 5 Average Carried 1 | 1 1 2 Final Capacity 6 | 6 6 4 Final Carried 5 | . 5 2 Class Distribution -------------------- 89% | Mutant 10% | Scavenger-Mutant Dominant Class ---------------- Mutant | -10/Materials Mutant | -9/Materials Resources | -11 -10 -9 ----------- Run | Scr Mat Mat Matter Collected 391 | 260 75 56 Remotely . | . . . Salvage Created 271 | . 129 142 Parts 16 | . 9 7 Haulers Intercepted . | . . . Recyclers Shooed . | . . . Parts Field Recycled . | . . . Retrieved Matter . | . . . Parts Self-Destructed . | . . . Prevented . | . . . Kills | -11 -10 -9 ------- Run | Scr Mat Mat Combat Hostiles Destroyed 6 | . 3 3 Guns 6 | . 3 3 Classes Destroyed 2 | . 1 1 Grunt 5 | . 3 2 Sentry 1 | . . 1 Best Kill Streak 2 | . 2 2 Combat Bots Only 2 | . 2 2 Max Kills in Single Turn 1 | . 1 1 Gunslinging . | . . . Exploded . | . . . Melee . | . . . Uniques/NPCs Destroyed . | . . . Combat | -11 -10 -9 -------- Run | Scr Mat Mat Damage Taken 1148 | . 256 892 Core 442 | . 36 406 Absorbed by Shields . | . . . Core Remaining (%) 92 | 100 85 . Volleys Fired 27 | . 16 11 Largest 2 | . 2 2 Hottest 90 | . 90 90 Shots Fired 42 | . 28 14 Gun 42 | . 28 14 Cannon . | . . . Launcher . | . . . Special . | . . . Kinetic . | . . . Thermal 36 | . 22 14 Explosive . | . . . Electromagnetic 6 | . 6 . Robot Hit Streak 8 | . 8 6 Robot Miss Streak 4 | . 4 1 Penetration Max . | . . . Secondary Targets 1 | . 1 . Max Gunslinging Chain 1 | . 1 . Shots Hit Robots 30 | . 18 12 Core Hits 14 | . 7 7 Critical Hits . | . . . Critical Kills . | . . . Critical Parts Destroyed . | . . . Melee Attacks 1 | . . 1 Impact 1 | . . 1 Slashing . | . . . Piercing . | . . . Sneak Attacks . | . . . Combat Hostiles . | . . . Follow-up Attacks . | . . . Damage Inflicted 378 | . 212 166 Guns 322 | . 212 110 Cannons . | . . . Explosions . | . . . Melee 28 | . . 28 Ramming 28 | . . 28 Kinetic . | . . . Thermal 271 | . 161 110 Explosive . | . . . Electromagnetic 51 | . 51 . Impact 28 | . . 28 Slashing . | . . . Piercing . | . . . Highest Corruption . | . . . Average Corruption . | . . . Corruption Purged . | . . . Overload Shots . | . . . Overflow Damage . | . . . Projectiles . | . . . Explosions . | . . . Melee . | . . . Knockbacks 1 | . . 1 Impact 1 | . . 1 Kinetic . | . . . Secondary . | . . . Self-Inflicted Damage 10 | . . 10 Shots . | . . . Rammed 5 | . . 5 Targets Rammed 8 | . . 8 Kicked 3 | . . 3 Crushed . | . . . Highest Temperature 325 | . 325 68 Average Temperature 109 | . 141 27 Received Heat Transfer 585 | . 147 438 Effects 2 | . 2 . Energy Bleed 1 | . 1 . Interference 1 | . 1 . Siege Activations . | . . . Robots Corrupted . | . . . Combat Hostiles . | . . . Parts Fried . | . . . Impact Corruptions . | . . . Robots Melted . | . . . Combat Hostiles . | . . . Parts Melted 1 | . . 1 Heat Transferred 741 | . 457 284 Parts Sabotaged . | . . . Parts Stolen . | . . . Parts Stripped . | . . . Power Chain Reactions . | . . . Missiles Intercepted . | . . . Alert | -11 -10 -9 ------- Run | Scr Mat Mat Peak Influence 106 | . 106 89 Average Influence 43 | . 36 60 Maximum Alert Level . | . . . Low Security (%) 100 | 100 100 100 Level 1 . | . . . Level 2 . | . . . Level 3 . | . . . Level 4 . | . . . Level 5 . | . . . High Security . | . . . Max Security . | . . . Squads Dispatched 2 | . 1 1 Investigation 2 | . 1 1 Extermination . | . . . Reinforcement . | . . . Assault . | . . . Garrison . | . . . Intercept . | . . . Construction Impeded . | . . . Haulers Reinforced . | . . . Stealth | -11 -10 -9 --------- Run | Scr Mat Mat Distress Signals . | . . . Communications Jammed . | . . . Distress Signals . | . . . Times Spotted 24 | . 6 18 Peak Tracking Total 12 | . 3 12 Tactical Retreats 3 | . . 3 Traps | -11 -10 -9 ------- Run | Scr Mat Mat Traps Triggered 2 | . 1 1 Indirectly . | . . . Trap Hack Attempts . | . . . Triggered . | . . . Disarmed . | . . . Reprogrammed . | . . . Reused . | . . . Traps Extracted . | . . . Installed . | . . . Triggered . | . . . Machines | -11 -10 -9 ---------- Run | Scr Mat Mat Machines Disabled 2 | . 1 1 Max in Single Turn 1 | . 1 1 Machines Sabotaged . | . . . Garrisons Compromised . | . . . Overloaded Fab Kills . | . . . Fab Network Shutdowns . | . . . Hacking | -11 -10 -9 --------- Run | Scr Mat Mat Machines Accessed 5 | . 3 2 Terminals 4 | . 3 1 Fabricators . | . . . Repair Stations 1 | . . 1 Recycling Units . | . . . Scanalyzers . | . . . Garrison Access . | . . . Total Hacks 10 | . 4 6 Successful 4 | . 1 3 Failed 6 | . 3 3 Catastrophic 2 | . 1 1 Database Lockouts . | . . . Manual 4 | . 4 . Terminals 7 | . 4 3 Fabricators . | . . . Repair Stations 3 | . . 3 Recycling Units . | . . . Scanalyzers . | . . . Garrison Access . | . . . Terminal Hacks 2 | . 1 1 Record 1 | . . 1 Zone Layout 1 | . 1 . Fabricator Hacks . | . . . Repair Station Hacks 2 | . . 2 Scan Component 1 | . . 1 Repair 1 | . . 1 Recycling Unit Hacks . | . . . Scanalyzer . | . . . Garrison Access Hacks . | . . . Unauthorized Hacks . | . . . Terminals . | . . . Fabricators . | . . . Repair Stations . | . . . Recycling Units . | . . . Scanalyzers . | . . . Garrison Access . | . . . Data Cores Recovered . | . . . Used . | . . . Hacking Detections 3 | . 2 1 Full Trace Events 1 | . . 1 Feedback Events . | . . . Feedback Blocked . | . . . Robot Schematics Acquired . | . . . Robots Built . | . . . Matter . | . . . Time . | . . . Total Robot Build Rating . | . . . Part Schematics Acquired . | . . . Parts Built . | . . . Matter . | . . . Time . | . . . Total Part Build Rating . | . . . Parts Repaired 1 | . . 1 Time 32 | . . 32 Parts Recycled . | . . . Recycled Matter . | . . . Retrieved Matter . | . . . Retrieved Components . | . . . Parts Scanalyzed . | . . . Part Schematics Acquired . | . . . Parts Damaged . | . . . Bothacking | -11 -10 -9 ------------ Run | Scr Mat Mat Used RIF Installer . | . . . Robots Hacked . | . . . Non-combat . | . . . Combat . | . . . Robot Hacks Applied . | . . . Relay Couplers Released . | . . . Robots Rewired . | . . . Allies Hacked . | . . . Hacks Repelled . | . . . Allies | -11 -10 -9 -------- Run | Scr Mat Mat Total Allies . | . . . Largest Group . | . . . Highest-Rated Group . | . . . Highest-Rated Ally . | . . . Total Orders . | . . . Ally Attacks . | . . . Total Damage . | . . . Kills . | . . . Allies Corrupted . | . . . Allies Melted . | . . . Intel | -11 -10 -9 ------- Run | Scr Mat Mat Robot Analysis Total . | . . . Derelict Logs Recovered . | . . . Drone Launches . | . . . Drone Recoveries . | . . . Exploration | -11 -10 -9 ------------- Run | Scr Mat Mat Turns Passed 536 | 40 283 213 Spaces Moved 381 | 30 189 162 Core 87 | 11 . 76 Treads . | . . . Legs 294 | 19 189 86 Wheels . | . . . Hover . | . . . Flight . | . . . Fastest Speed 50 | 50 120 50 Average Speed 104 | 94 120 88 Slowest Speed 120 | 120 120 120 Overloaded Moves . | . . . Propulsion Burnouts . | . . . Robots Hopped . | . . . Cave-ins Triggered . | . . . Exploration Rate (%) 21 | 3 42 19 Regions Visited 2 Branch Regions . Pre-discovered Areas . | . . . Known Exits Taken . | . . . Unknown Exits Taken 2 | 1 1 . Scrap Searched . | . . . Spaces Dug . | . . . Terrain Destroyed . | . . . Melee . | . . . Projectile . | . . . AOE . | . . . Actions | -11 -10 -9 --------- Run | Scr Mat Mat Total 472 | 41 217 214 Wait 22 | . 4 18 Move 379 | 29 188 162 Hop . | . . . Pick Up 16 | 6 7 3 Fast Attach . | . . . Attach 15 | 6 2 7 Detach 1 | . . 1 Swap 2 | . . 2 Drop 1 | . . 1 Fire 27 | . 16 11 Melee 1 | . . 1 Ram 2 | . . 2 Kick 6 | . . 6 Crush . | . . . Escape Stasis . | . . . Rewire . | . . . Trap . | . . . Miscellaneous . | . . . Route ------- -11/Scrapyard -10/Materials -9/Materials History --------- Turn | Location | Event 13 | -11/Scrapyard | Discovered new exit (range 15) 41 | -11/Scrapyard | Entered Materials 309 | -10/Materials | Discovered new exit (range 9) 318 | -10/Materials | Build established: Mutant 324 | -10/Materials | Entered another Materials area 324 | -9/Materials | Evolved 2 slots: Propulsion x2 493 | -9/Materials | Core integrity fell below 50% 496 | -9/Materials | Repaired Particle Gun? 514 | -9/Materials | Core integrity fell below 20% 524 | -9/Materials | Lost 10 parts (1p5n1u3w) 537 | -9/Materials | Destroyed by S-10 Pest with Light Assault Rifle Last Messages --------------- Targeting Computer destroyed. Aluminum Leg destroyed. Triggered Alarm Trap. An alarm sounds. ALERT: Alarm triggered, dispatching investigation squad. Acquired Beam Rifle. Dropped Sml. Storage Unit. G-34 Mercenary destroyed. Beam Rifle destroyed. Acquired Sml. Laser. U-05 Engineer lays Concrete. Slammed into G-47 Trooper. >> REPAIR: Completed Particle Gun? Acquired 1 matter. U-05 Engineer lays Concrete. Slammed into Y-45 Defender. U-05 Engineer lays Concrete. Acquired Hvy. Hammer. K-01 Serf cleans the Atomic Centrifuge. S-10 Pest destroyed. Map ----- +----------------------------------------------------+ | ????????????????????????????????????????? | | ????????????????????????????????????????? | | ????????????????????????????????????????? | | ????????????#########???????????????????? | | ????????????# ##########??????????? | | ????????????# # #???????### | | ????????????# # """ """ ######### * | | ????????????##### # """ """ ## """ # | | ????????????????# # """ """ ## "R" # " | | ????????????????# # "" """ ## " " + " | | ????????????????# + ## # " | | ????????????????# # ## # | | ?????############ # ! ## # | | ?????# ## ###############+### | | ?????# # ####T###???# ### | | ?????# """ """ # ##### | | ?????# """*""" + T | | ?????# """ """ # ##### | | ?????# == # #### #???# ### | | ?????# #######??# #???### ###?? | | ?????# #????????# #?????# #???? | | ?????###########????????# #?????# #???? | | ????????????????????????# #?????# #???? | | ????????????????????????# #?????#+#???? | | ??????????????########### #??????????## | | ??????????????# @ ss # #??????????# | | ??????????????# "" """ # #??????????# | | ??????????????# "Y """Y# #??????????# | | ??????????????# "" """ + #??????????# | | ??????????????# # #??????????# | | ??????????????# =* # +??????????# | | ??????????????# *% + #??????????# | | ??????????????+ * ### #????????#### | | ??????????????##### #####?# #????????# | | ??????????????????###?????# #????????# | | ??????????????????????????# #????????# | | ???????????????????????#### ########## | | ???????????????????????+ / | | ???????????????????????# ############# | | ???????????????????????#?????????????# | | ?????????????????????????????????????# | | ?????????????????????????????????????# | | ?????????????????????????????????????# | | ?????????????????????????????????????#### | | ????????????????????????????????????????? | | ????????????????????????????????????????? | | ????????????????????????????????????????? | | ????????????????????????????????????????? | | ????????????????????????????????????????? | | ????????????????????????????????????????? | +----------------------------------------------------+ Best States ------------- Heat Dissipation 28 Energy Generation 10 Energy Capacity 125 Matter Stores 360 Matter Capacity 400 Sight Range 16 Terrain Scan Density 10 Evasion (%) 50 Targeting Accuracy 5 Item Schematics ----------------- None Robot Schematics ------------------ None Fabricated ------------ Nothing Alien Tech Used ----------------- None Achievements -------------- None Challenges ------------ None Game ------ Seed VisualGyrokineticWand Manual? 0 Play Time 00:12:39 Cumulative 5.0 hours Start 2020.05.12 @ 10:27:33 End 2020.05.12 @ 10:38:38 Sessions 1 Manual Loads 0 Difficulty Rogue Special Mode None Game No. 12 Rogue 12 Adventurer 0 Explorer 0 Win Type - Total 0 Types 0/0/0/0/0/0/0 Lore% 13 Gallery% 10 Achievement% 11 Wizard Run 0 Options --------- ASCII 0 Keyboard 0 Movement Mouse Keybinds 0 Fullscreen 1 Font 18/SmallcapsGlow Map View 76x50 Tactical HUD 0 Map Filters NONE Filters NONE Steam 1 RUN: 3a0a935f-227e-4528-ae9f-4fbd3051bf45